bitfinex/quotes_SOLUSD_20251002
["timestamp","ask_amount","ask_price","bid_price","bid_amount"]
[1759392548595,2.36109947,223.26,223.24,35.97948357]
[1759392548779,2.76109947,223.27,223.24,35.97948357]
[1759392548979,2.36109947,223.27,223.24,35.97948357]
[1759392549493,2.36109947,223.28,223.24,36.64948357]
[1759392549795,1.11968325,223.27,223.24,36.64948357]
[1759392549974,2.36109947,223.28,223.24,36.64948357]
[1759392550170,1.51968325,223.27,223.19,34.25261317]
[1759392550497,2.36109947,223.22,223.18,0.67]
[1759392550806,2.36109947,223.25,223.19,0.67]
[1759392550986,1.11985907,223.24,223.19,32.17]
[1759392551187,2.36109947,223.26,223.2,0.67]
[1759392551376,4.43847152,223.25,223.21,31.5]
[1759392551699,1.11985147,223.24,223.21,32.17]
[1759392552011,2.36109947,223.26,223.21,32.17]
[1759392552175,4.43956609,223.25,223.21,32.17]
[1759392552494,2.36109947,223.23,223.21,31.5]
[1759392552709,1.51985168,223.24,223.21,31.5]
[1759392552710,2.36109947,223.22,223.21,31.5]
[1759392553204,0.4,223.24,223.21,31.5]
[1759392553401,2.36109947,223.24,223.2,4.48024231]
[1759392555086,0.4,223.26,223.21,0.67]
[1759392555285,3.48095768,223.25,223.22,0.67]
[1759392555501,2.36109947,223.26,223.22,0.67]
[1759392555675,1.11984493,223.25,223.23,0.67]
[1759392555872,9.68234422,223.28,223.23,0.67]
[1759392555873,80.8,223.24,223.23,0.67]
[1759392557403,80.8,223.24,223.23,5.14968463]
[1759392557899,80.8,223.24,223.23,0.67]
[1759392559303,80.8,223.24,223.23,5.14968463]
[1759392561316,80.8,223.3,223.23,16.3488962]
[1759392561492,80.8,223.3,223.24,0.67]
[1759392561809,80.8,223.3,223.25,31.5]
[1759392561995,80.8,223.3,223.26,0.67]
[1759392563213,80.8,223.3,223.27,4.47888207]
[1759392563397,80.8,223.3,223.28,32.17]
[1759392563797,80.8,223.3,223.28,31.5]
[1759392563997,80.8,223.3,223.29,0.67]
[1759392565100,80.8,223.3,223.29,5.14848089]
[1759392568616,80.9,223.33,223.29,16.34468313]
[1759392568815,80.9,223.33,223.3,0.67]
[1759392569009,80.9,223.33,223.31,31.5]
[1759392569206,80.9,223.33,223.32,0.67]
[1759392570523,80.9,223.33,223.32,5.14787927]
[1759392578711,80.9,223.33,223.32,4.47787927]
[1759392579821,80.9,223.33,223.32,5.14787927]
[1759392580123,80.9,223.33,223.32,4.47787927]
[1759392580622,80.9,223.33,223.32,25.94787927]
[1759392581225,80.9,223.33,223.32,25.27787927]
[1759392581619,80.9,223.33,223.32,20.8]
[1759392582817,80.9,223.33,223.32,25.27787927]
[1759392584007,80.9,223.33,223.32,25.94787927]
[1759392588932,80.9,223.33,223.32,5.14787927]
[1759392591731,0.1,223.33,223.32,5.14787927]
[1759392593644,0.1,223.33,223.32,25.27787927]
[1759392593848,0.1,223.33,223.32,56.75787927]
[1759392595822,0.1,223.33,223.32,52.28]
[1759392596042,0.1,223.33,223.32,56.75787927]
[1759392606163,0.1,223.33,223.25,11.19796138]
[1759392606336,4.8458643,223.32,223.25,0.65]
[1759392606639,4.8458643,223.31,223.29,20.8]
[1759392606845,4.8458643,223.3,223.29,20.8]
[1759392607051,4.4458643,223.3,223.26,32.11]
[1759392607249,3.32639157,223.29,223.28,0.65]
[1759392607454,3.32639157,223.29,223.28,21.45]
[1759392607964,80.8,223.32,223.29,15.67468313]
[1759392608163,80.8,223.32,223.3,32.11]
[1759392608337,80.8,223.32,223.31,0.65]
[1759392609562,80.8,223.32,223.31,5.12807979]
[1759392610560,80.8,223.32,223.31,36.58807979]
[1759392612469,0.1,223.33,223.31,36.58807979]
[1759392612769,0.1,223.33,223.32,0.65]
[1759392614259,0.1,223.33,223.32,5.12787927]
[1759392617267,0.1,223.34,223.32,5.12787927]
[1759392617480,0.1,223.35,223.33,32.39432314]
[1759392617669,0.1,223.35,223.33,36.06337362]
[1759392617966,0.1,223.35,223.34,0.65]
[1759392618645,0.1,223.35,223.34,32.11]
[1759392618849,0.1,223.35,223.34,52.26]
[1759392619264,0.1,223.35,223.34,56.73747828]
[1759392620463,0.1,223.35,223.34,57.38747828]
[1759392635976,0.1,223.35,223.34,70.83044648]
[1759392639489,0.1,223.35,223.34,71.11476962]
[1759392639490,1e-08,223.35,223.34,71.11476962]
[1759392640069,0.1,223.36,223.35,0.28432314]
[1759392640270,0.1,223.36,223.35,0.97432314]
[1759392640774,0.1,223.36,223.35,18.89276226]
[1759392641588,80.8,223.44,223.38,20.8]
[1759392641778,80.8,223.43,223.42,20.8]
[1759392641979,80.8,223.43,223.42,52.22]
[1759392642497,80.8,223.43,223.42,65.65995699]
[1759392642902,80.8,223.43,223.42,70.13583202]
[1759392644893,80.8,223.43,223.42,70.82583202]
[1759392645094,0.1,223.46,223.42,82.0155196]
[1759392645300,0.1,223.46,223.43,0.69]
[1759392645608,0.1,223.46,223.44,31.42]
[1759392645782,0.1,223.46,223.44,45.54694712]
[1759392646111,0.1,223.46,223.44,32.11]
[1759392646317,0.1,223.46,223.45,13.43694712]
[1759392647200,0.1,223.46,223.45,17.91222123]
[1759392649492,0.1,223.46,223.45,18.60222123]
[1759392654698,0.1,223.46,223.45,17.91222123]
[1759392655085,0.1,223.46,223.45,18.63222123]
[1759392660308,0.1,223.46,223.45,17.91222123]
[1759392660988,0.1,223.46,223.45,18.63222123]
[1759392661498,0.1,223.48,223.47,20.8]
[1759392661694,0.1,223.48,223.47,52.2]
[1759392661895,0.1,223.48,223.47,52.92]
[1759392662310,0.1,223.48,223.47,54.71143247]
[1759392662494,0.1,223.48,223.47,59.18630605]
[1759392663300,0.1,223.48,223.47,6.26630605]
[1759392663507,0.1,223.48,223.47,37.66630605]
[1759392664087,0.1,223.48,223.47,6.26630605]
[1759392664288,0.1,223.48,223.47,33.19143247]
[1759392664487,0.1,223.48,223.47,37.66630605]
[1759392665702,0.1,223.48,223.47,6.26630605]
[1759392665904,0.1,223.48,223.47,37.66630605]
[1759392668891,0.1,223.48,223.47,6.26630605]
[1759392669126,0.1,223.48,223.47,37.66630605]
[1759392669497,0.1,223.48,223.47,38.38630605]
[1759392669702,0.1,223.48,223.47,37.66630605]
[1759392671897,0.1,223.48,223.47,6.26630605]
[1759392672106,0.1,223.48,223.47,37.64630605]
[1759392675006,0.1,223.48,223.47,38.36630605]
[1759392675338,0.1,223.48,223.47,37.64630605]
[1759392676835,0.1,223.48,223.47,38.36630605]
[1759392677034,0.1,223.48,223.47,37.64630605]
[1759392678019,0.1,223.48,223.47,6.26630605]
[1759392678231,0.1,223.48,223.47,37.64630605]
[1759392678616,0.5,223.48,223.45,20.8]
[1759392678848,0.4,223.47,223.46,31.38]
[1759392679018,0.1,223.48,223.46,31.38]
[1759392679220,0.5,223.48,223.46,31.38]
[1759392680614,0.1,223.48,223.46,31.38]
[1759392682655,0.1,223.48,223.47,52.18]
[1759392682836,0.1,223.48,223.47,52.9]
[1759392684146,0.1,223.48,223.47,57.37487358]
[1759392684526,0.1,223.48,223.47,52.18]
[1759392686844,0.1,223.48,223.46,13.43754899]
[1759392687154,10.87647521,223.46,223.4,31.38]
[1759392687328,3.7307337,223.45,223.41,31.38]
[1759392687528,3.3307337,223.44,223.41,31.38]
[1759392687731,0.4,223.45,223.41,31.38]
[1759392687969,3.33043802,223.44,223.41,31.38]
[1759392688140,0.4,223.47,223.42,0.71]
[1759392688343,3.33022795,223.46,223.43,31.38]
[1759392688658,3.33022795,223.45,223.44,0.71]
[1759392688859,3.33022795,223.45,223.44,32.09]
[1759392689055,3.33022795,223.45,223.44,35.8554744]
[1759392689262,0.1,223.48,223.44,35.8554744]
[1759392689562,3.33051594,223.47,223.44,36.5654744]
[1759392689734,0.1,223.48,223.44,36.5654744]
[1759392689931,3.33051403,223.47,223.44,36.5654744]
[1759392690145,0.1,223.48,223.44,36.5654744]
[1759392691065,0.1,223.48,223.47,20.8]
[1759392691354,0.1,223.48,223.47,52.18]
[1759392692140,0.1,223.48,223.47,56.65487358]
[1759392692338,0.1,223.48,223.47,57.36487358]
[1759392694854,0.1,223.49,223.48,0.3091408]
[1759392695048,3.42972868,223.49,223.48,0.3091408]
[1759392695244,14.70620389,223.49,223.48,0.3091408]
[1759392698745,3.42972868,223.49,223.48,21.8191408]
[1759392698955,0.1,223.49,223.48,21.8191408]
[1759392699259,0.1,223.49,223.48,1.0191408]
[1759392699968,0.1,223.49,223.48,0.3091408]
[1759392700150,3.42916884,223.49,223.48,0.3091408]
[1759392700554,3.82916884,223.49,223.48,0.3091408]
[1759392701155,3.42916884,223.49,223.48,0.3091408]
[1759392703173,3.42867868,223.49,223.48,0.3091408]
[1759392703976,14.30515389,223.49,223.48,0.3091408]
[1759392704355,14.70515389,223.49,223.48,0.3091408]
[1759392706183,14.30515389,223.49,223.48,0.3091408]
[1759392708866,18.77962702,223.49,223.48,0.3091408]
[1759392709054,19.17962702,223.49,223.48,0.3091408]
[1759392709470,18.77962702,223.49,223.48,0.3091408]
[1759392710577,14.30515389,223.49,223.48,0.3091408]
[1759392712283,3.42867868,223.49,223.48,0.3091408]
[1759392712482,3.42867868,223.49,223.48,1.0191408]
[1759392715494,3.42867868,223.49,223.48,5.49381414]
[1759392717282,3.42867868,223.49,223.48,1.0191408]
[1759392718664,19.17962702,223.49,223.48,0.3091408]
[1759392718892,21.82181759,223.49,223.48,0.3091408]
[1759392719185,14.70515389,223.49,223.48,0.3091408]
[1759392719381,14.30515389,223.49,223.48,0.3091408]
[1759392719771,19.17962702,223.49,223.48,0.3091408]
[1759392720174,21.53749445,223.49,223.48,0.3091408]
[1759392720570,53.18181759,223.49,223.48,0.3091408]
[1759392721175,11.16079835,223.48,223.38,0.72]
[1759392721486,3.32867868,223.47,223.39,0.72]
[1759392721690,14.20515389,223.46,223.39,0.72]
[1759392721868,3.32867868,223.45,223.39,0.72]
[1759392722070,3.32867868,223.44,223.39,0.72]
[1759392722287,3.32867868,223.43,223.39,0.72]
[1759392722484,0.1,223.49,223.39,0.72]
[1759392722688,3.32958789,223.48,223.4,4.47627573]
[1759392722881,3.32958789,223.47,223.44,20.8]
[1759392723065,0.1,223.49,223.45,0.72]
[1759392723272,3.32957499,223.48,223.45,0.72]
[1759392723484,3.32957499,223.47,223.45,0.72]
[1759392723667,0.1,223.49,223.45,0.72]
[1759392723873,3.32981732,223.48,223.45,5.1952372]
[1759392724068,0.1,223.49,223.48,20.8]
[1759392724499,0.1,223.49,223.48,0.72]
[1759392728028,0.1,223.49,223.48,5.19467334]
[1759392730318,0.1,223.49,223.48,25.99467334]
[1759392730619,0.1,223.49,223.48,5.19467334]
[1759392732430,0.1,223.49,223.48,21.52]
[1759392732636,0.1,223.49,223.48,25.99467334]
[1759392732797,0.1,223.49,223.48,20.8]
[1759392732997,0.1,223.49,223.41,2.51191398]
[1759392732998,10.87647521,223.48,223.41,2.51191398]
[1759392733299,3.32934155,223.47,223.42,20.8]
[1759392733509,3.32934155,223.46,223.42,0.72]
[1759392733695,10.87647521,223.48,223.42,0.72]
[1759392734023,3.32905412,223.47,223.42,0.72]
[1759392734203,14.20552933,223.46,223.42,0.72]
[1759392734405,16.11476273,223.45,223.38,4.47648404]
[1759392734612,10.87647521,223.43,223.38,4.47648404]
[1759392734922,10.87647521,223.43,223.35,0.72]
[1759392734923,10.87647521,223.41,223.35,0.72]
[1759392735125,10.87647521,223.41,223.35,5.197226]
[1759392735429,10.87647521,223.41,223.38,20.8]
[1759392736414,10.87647521,223.41,223.39,20.8]
[1759392737129,10.87647521,223.41,223.38,0.72]
[1759392737424,10.87647521,223.41,223.39,0.72]
[1759392737727,10.87647521,223.41,223.37,25.99677864]
[1759392738059,10.87647521,223.41,223.38,0.72]
[1759392741730,10.87647521,223.41,223.38,5.19663297]
[1759392743529,10.87647521,223.41,223.38,0.72]
[1759392745910,10.87647521,223.42,223.37,25.27679396]
[1759392746125,80.8,223.41,223.37,25.92679396]
[1759392746829,11.27647521,223.4,223.32,5.12787927]
[1759392747015,12.38571191,223.4,223.32,5.12787927]
[1759392747216,10.87647521,223.38,223.32,5.12787927]
[1759392747616,4.4764984,223.39,223.32,4.47787927]
[1759392747819,10.87647521,223.38,223.32,5.12787927]
[1759392748230,16.03712411,223.4,223.33,0.65]
[1759392748606,16.03712411,223.4,223.33,21.45]
[1759392749521,16.03712411,223.4,223.33,25.92761797]
[1759392750116,16.03712411,223.4,223.33,21.45]
[1759392751435,17.54636081,223.4,223.33,21.45]
[1759392752533,1.5092367,223.38,223.33,20.8]
[1759392752730,12.38571191,223.36,223.31,20.8]
[1759392752919,10.87647521,223.34,223.31,20.8]
[1759392753118,10.87647521,223.34,223.29,0.65]
[1759392753430,10.87647521,223.34,223.31,20.8]
[1759392755549,80.8,223.33,223.27,32.01]
[1759392755844,85.27775062,223.33,223.28,20.8]
[1759392756021,85.27775062,223.33,223.29,0.65]
[1759392757449,85.27775062,223.33,223.27,5.1288251]
[1759392757648,85.27775062,223.33,223.27,0.65]
[1759392757957,85.27775062,223.33,223.28,21.45]
[1759392758157,85.27775062,223.33,223.29,0.65]
[1759392759853,80.8,223.33,223.3,0.65]
[1759392761032,80.8,223.32,223.28,21.45]
[1759392761262,80.8,223.32,223.29,0.65]
[1759392763564,80.8,223.32,223.3,0.65]
[1759392765934,80.8,223.31,223.3,0.65]
[1759392766134,15.75396223,223.34,223.28,25.92866252]
[1759392766560,10.87647521,223.34,223.28,25.27866252]
[1759392766742,133.18432314,223.37,223.29,21.45]
[1759392766743,10.87647521,223.36,223.29,21.45]
[1759392767061,80.8,223.3,223.29,20.8]
[1759392767550,80.8,223.3,223.29,21.45]
[1759392767859,80.8,223.3,223.29,25.92848089]
[1759392768647,80.8,223.3,223.29,21.45]
[1759392769763,80.8,223.3,223.29,25.92848089]
[1759392772966,80.8,223.3,223.29,57.28848089]
[1759392781961,80.8,223.3,223.29,70.73626984]
[1759392785774,80.8,223.3,223.29,56.63848089]
[1759392786366,80.8,223.3,223.27,17.92713897]
[1759392786583,80.8,223.3,223.28,31.36]
[1759392786584,81.2,223.3,223.28,31.36]
[1759392786952,81.2,223.29,223.26,25.27906239]
[1759392787154,0.4,223.28,223.27,31.36]
[1759392788066,80.8,223.29,223.27,31.36]
[1759392788275,80.8,223.29,223.27,35.83886999]
[1759392789384,80.8,223.29,223.28,31.36]
[1759392789578,80.8,223.29,223.28,35.83868147]
[1759392789777,80.8,223.29,223.28,56.63868147]
[1759392791788,80.8,223.29,223.28,52.16]
[1759392792564,81.2,223.29,223.28,52.16]
[1759392792892,80.8,223.29,223.28,52.16]
[1759392794171,80.8,223.29,223.25,0.2]
[1759392794172,91.67647521,223.29,223.25,0.2]
[1759392794385,92.07647521,223.29,223.25,52.36]
[1759392794705,0.4,223.28,223.25,52.36]
[1759392795595,91.67647521,223.29,223.25,56.83916751]
[1759392795987,92.07647521,223.29,223.25,56.83916751]
[1759392796576,80.8,223.28,223.25,56.83916751]
[1759392799514,80.8,223.28,223.25,57.51916751]
[1759392801388,80.8,223.28,223.26,0.68]
[1759392801589,80.8,223.28,223.25,56.83916751]
[1759392801886,80.8,223.28,223.25,57.51916751]
[1759392802492,80.8,223.27,223.25,57.51916751]
[1759392806577,80.8,223.27,223.25,21.0]
[1759392806776,80.8,223.26,223.25,0.2]
[1759392806999,10.87647521,223.26,223.25,0.2]
[1759392807205,14.6000385,223.26,223.25,0.2]
[1759392808389,16.96271864,223.26,223.25,0.2]
[1759392808792,21.44180132,223.26,223.25,0.2]
[1759392808999,14.2000385,223.26,223.25,0.2]
[1759392809205,10.87647521,223.29,223.25,5.39928331]
[1759392809390,3.32018391,223.28,223.26,0.72]
[1759392809588,10.87647521,223.29,223.26,0.72]
[1759392809786,10.87647521,223.29,223.27,0.72]
[1759392810703,10.87647521,223.29,223.26,52.16]
[1759392810911,10.87647521,223.29,223.28,0.72]
[1759392811104,14.19629319,223.29,223.27,4.47884493]
[1759392811287,10.87647521,223.29,223.27,5.19884493]
[1759392811487,80.8,223.28,223.27,5.19884493]
[1759392817016,80.8,223.28,223.27,0.72]
[1759392817197,80.8,223.28,223.26,21.52]
[1759392817398,80.8,223.27,223.26,52.88]
[1759392817595,80.8,223.27,223.26,57.35908268]
[1759392818423,80.8,223.27,223.26,52.16]
[1759392818714,80.8,223.27,223.25,52.36]
[1759392818926,80.8,223.27,223.26,0.72]
[1759392820416,80.8,223.27,223.26,5.19908268]
[1759392820720,80.8,223.27,223.26,0.72]
[1759392820934,80.8,223.27,223.25,36.0391878]
[1759392820935,80.8,223.27,223.25,36.7591878]
[1759392821924,80.8,223.27,223.25,0.2]
[1759392822101,80.8,223.27,223.25,21.0]
[1759392822102,0.4,223.26,223.25,21.0]
[1759392823002,80.8,223.27,223.25,21.0]
[1759392823324,0.4,223.28,223.25,21.0]
[1759392823325,80.8,223.26,223.25,21.0]
[1759392826023,91.67647521,223.26,223.25,0.2]
[1759392826318,92.07647521,223.26,223.25,0.2]
[1759392826822,91.67647521,223.26,223.25,0.2]
[1759392827399,92.07647521,223.26,223.25,0.2]
[1759392829000,123.41647521,223.26,223.25,0.2]
[1759392829200,127.89555789,223.26,223.25,0.2]
[1759392829422,50.41351053,223.26,223.25,0.2]
[1759392830019,10.87647521,223.26,223.25,0.92]
[1759392830222,132.9,223.29,223.25,5.39928331]
[1759392830523,14.1951131,223.28,223.25,5.39928331]
[1759392830825,3.31863789,223.27,223.26,0.72]
[1759392831027,3.31863789,223.27,223.25,4.67928331]
[1759392831230,10.87647521,223.28,223.25,4.67928331]
[1759392831430,3.32025271,223.27,223.25,4.67928331]
[1759392831726,10.87647521,223.28,223.25,4.67928331]
[1759392831922,3.320092,223.27,223.26,0.72]
[1759392833137,3.320092,223.27,223.26,5.19908268]
[1759392833822,3.32060812,223.27,223.26,5.19908268]
[1759392835329,10.87647521,223.28,223.26,5.19908268]
[1759392835920,10.87647521,223.28,223.27,0.7]
[1759392836633,14.19844764,223.28,223.27,0.7]
[1759392836934,10.87647521,223.28,223.26,4.47908268]
[1759392837239,10.87647521,223.28,223.26,5.17908268]
[1759392838236,8.95639274,223.3,223.29,20.8]
[1759392838441,12.27913775,223.3,223.29,21.5]
[1759392839040,3.32274501,223.3,223.29,21.5]
[1759392839239,10.87647521,223.36,223.29,34.94718617]
[1759392839542,10.87647521,223.34,223.3,0.7]
[1759392839743,3.32308579,223.33,223.3,32.04]
[1759392839920,0.4,223.36,223.3,32.04]
[1759392840122,10.87647521,223.34,223.3,36.51814051]
[1759392840449,3.32253345,223.33,223.31,0.7]
[1759392840635,0.4,223.36,223.31,0.7]
[1759392840834,10.87647521,223.34,223.31,0.7]
[1759392841148,3.32271557,223.35,223.31,0.7]
[1759392841149,10.87647521,223.35,223.31,0.7]
[1759392841320,10.87647521,223.33,223.31,0.7]
[1759392841637,10.87647521,223.33,223.3,35.81814051]
[1759392841638,10.87647521,223.31,223.27,42.21647521]
[1759392841824,3.321692,223.3,223.27,42.21647521]
[1759392842024,10.87647521,223.31,223.27,42.21647521]
[1759392842335,10.87647521,223.29,223.27,31.34]
[1759392842518,10.87647521,223.3,223.27,31.34]
[1759392842718,3.3221375,223.29,223.27,31.34]
[1759392843030,10.87647521,223.31,223.27,31.34]
[1759392843331,3.32223019,223.3,223.27,31.34]
[1759392843529,10.87647521,223.31,223.27,32.04]
[1759392843843,3.32238858,223.3,223.27,32.04]
[1759392844160,10.87647521,223.31,223.27,0.7]
[1759392844445,3.32246678,223.3,223.27,0.7]
[1759392844746,3.32240449,223.29,223.27,0.7]
[1759392844931,10.87647521,223.31,223.27,0.7]
[1759392845131,3.32250768,223.3,223.27,0.7]
[1759392845332,3.32250768,223.29,223.27,0.7]
[1759392845550,10.87647521,223.31,223.27,0.7]
[1759392845844,3.32196573,223.3,223.27,0.7]
[1759392846048,3.32196573,223.29,223.27,0.7]
[1759392846351,10.87647521,223.31,223.27,0.7]
[1759392846528,3.7220722,223.3,223.26,31.34]
[1759392846733,10.87647521,223.28,223.25,0.2]
[1759392847346,10.87647521,223.26,223.25,0.2]
[1759392849422,14.19969711,223.26,223.25,0.2]
[1759392849945,18.67877979,223.26,223.25,0.2]
[1759392851518,14.19969711,223.26,223.25,0.2]
[1759392853960,18.67877979,223.26,223.25,0.2]
[1759392855250,18.67879944,223.26,223.25,0.2]
[1759392855837,51.93198609,223.26,223.25,0.2]
[1759392860442,52.21630923,223.26,223.25,0.2]
[1759392860845,20.87630923,223.26,223.25,0.2]
[1759392861044,50.70312258,223.26,223.25,0.2]
[1759392861231,20.87630923,223.26,223.25,0.2]
[1759392861448,52.21630923,223.26,223.25,0.2]
[1759392862359,52.71630923,223.26,223.25,0.2]
[1759392862730,20.87630923,223.26,223.25,0.2]
[1759392863054,52.21630923,223.26,223.25,0.2]
[1759392863554,20.47630923,223.26,223.25,0.2]
[1759392863758,51.81630923,223.26,223.25,0.2]
[1759392865252,20.47630923,223.26,223.25,0.2]
[1759392865457,51.81630923,223.26,223.25,0.2]
[1759392866157,51.81074179,223.26,223.25,0.2]
[1759392867352,20.47074179,223.26,223.25,0.2]
[1759392867537,51.81074179,223.26,223.25,0.85]
[1759392867731,50.29755514,223.26,223.25,0.2]
[1759392867937,51.81074179,223.26,223.25,0.2]
[1759392869248,52.31074179,223.26,223.25,0.2]
[1759392869432,51.81074179,223.26,223.25,0.2]
[1759392870358,18.95755514,223.26,223.25,0.2]
[1759392870656,51.81074179,223.26,223.25,0.2]
[1759392871536,52.21074179,223.26,223.25,0.2]
[1759392873739,50.69755514,223.26,223.25,0.2]
[1759392874074,52.21074179,223.26,223.25,0.2]
[1759392876470,65.64074179,223.26,223.25,0.2]
[1759392876764,52.21074179,223.26,223.25,0.2]
[1759392879546,52.71074179,223.26,223.25,0.2]
[1759392880162,52.21074179,223.26,223.25,0.2]
[1759392881662,10.87647521,223.19,223.13,4.68168129]
[1759392881974,10.87647521,223.17,223.13,4.68168129]
[1759392883856,10.87647521,223.17,223.14,0.65]
[1759392884978,10.87647521,223.17,223.15,0.65]
[1759392885148,1.51318665,223.18,223.15,0.65]
[1759392885348,10.87647521,223.17,223.15,0.65]
[1759392886175,15.35737392,223.17,223.15,0.65]
[1759392886376,10.87647521,223.17,223.15,0.65]
[1759392886578,10.87647521,223.18,223.15,0.65]
[1759392887259,15.35728648,223.18,223.15,0.65]
[1759392887459,15.85728648,223.18,223.15,0.65]
[1759392887669,15.35728648,223.18,223.15,0.65]
[1759392889376,31.34,223.17,223.15,0.65]
[1759392889674,10.87647521,223.16,223.15,0.65]
[1759392890575,10.87647521,223.16,223.13,0.2]
[1759392892657,5.99426095,223.17,223.13,0.2]
[1759392892982,31.34,223.16,223.13,0.85]
[1759392894291,35.82113975,223.16,223.13,0.85]
[1759392894459,35.82113975,223.16,223.13,0.2]
[1759392894656,10.87647521,223.14,223.13,0.2]
[1759392896074,10.87647521,223.15,223.13,0.2]
[1759392896596,15.35778397,223.15,223.13,0.2]
[1759392898760,31.34,223.14,223.13,0.2]
[1759392899389,31.34,223.14,223.13,0.86]
[1759392899593,31.34,223.14,223.13,0.2]
[1759392900473,31.34,223.14,223.13,0.86]
[1759392901198,10.87647521,223.14,223.13,0.86]
[1759392901660,42.21647521,223.16,223.13,5.34169228]
[1759392901863,42.21647521,223.16,223.14,0.66]
[1759392902062,42.21647521,223.16,223.15,0.66]
[1759392903271,10.87647521,223.16,223.15,0.66]
[1759392904296,10.87647521,223.16,223.13,4.68169228]
[1759392904496,10.87647521,223.16,223.14,0.66]
[1759392904803,10.87647521,223.16,223.14,5.14143764]
[1759392905092,80.08,223.15,223.14,25.28143764]
[1759392905470,80.08,223.15,223.14,25.94143764]
[1759392906087,10.87647521,223.23,223.14,37.14516624]
[1759392906291,10.87647521,223.23,223.15,0.66]
[1759392906882,10.87647521,223.23,223.19,20.8]
[1759392907289,0.7,223.22,223.19,20.8]
[1759392907609,0.7,223.22,223.18,0.66]
[1759392908303,0.7,223.22,223.19,4.48048747]
[1759392908782,10.87647521,223.23,223.2,0.66]
[1759392910401,10.87647521,223.23,223.21,4.48008601]
[1759392910913,10.87647521,223.23,223.21,5.14008601]
[1759392911484,80.08,223.24,223.22,0.66]
[1759392911686,80.08,223.24,223.23,0.66]
[1759392914176,80.08,223.24,223.23,5.13968463]
[1759392914784,80.08,223.27,223.23,16.3388962]
[1759392915025,80.08,223.27,223.24,0.66]
[1759392915190,0.7,223.26,223.23,4.47968463]
[1759392915383,80.08,223.27,223.23,5.13968463]
[1759392915583,80.78,223.27,223.23,5.13968463]
[1759392918392,80.08,223.26,223.23,5.13968463]
[1759392919220,80.08,223.26,223.22,4.47988531]
[1759392919391,80.08,223.26,223.23,0.66]
[1759392919592,80.78,223.26,223.22,4.47988531]
[1759392919794,80.78,223.26,223.22,5.13988531]
[1759392921897,80.78,223.26,223.22,4.47988531]
[1759392922116,80.78,223.26,223.24,4.47948396]
[1759392923525,80.08,223.26,223.24,4.47948396]
[1759392924231,80.77,223.26,223.23,4.47968463]
[1759392924438,80.08,223.25,223.23,4.47968463]
[1759392924840,80.77,223.25,223.23,4.47968463]
[1759392925134,10.87647521,223.23,223.16,11.2026815]
[1759392925321,80.77,223.22,223.19,13.45442314]
[1759392925529,11.56647521,223.21,223.19,20.8]
[1759392925824,0.69,223.2,223.19,20.8]
[1759392926816,0.69,223.2,223.19,25.28048747]
[1759392927935,10.87647521,223.21,223.19,25.28048747]
[1759392928135,11.58647521,223.21,223.19,25.28048747]
[1759392928733,10.87647521,223.21,223.19,25.28048747]
[1759392928935,0.71,223.2,223.16,4.48089167]
[1759392929146,0.71,223.19,223.16,4.48089167]
[1759392929839,0.71,223.18,223.13,11.40395916]
[1759392930136,0.71,223.17,223.13,56.8314]
[1759392931243,0.71,223.17,223.14,4.48149144]
[1759392931614,11.58647521,223.19,223.14,5.15149144]